Cogmind - Beta 14 @@@ ROGUE MODE // 2024.09.16 @ 17:34:33 Player: Cherman0 Result: Self-destructed Performance ------------- Evolutions (2) 1000 Regions Visited (7) 1400 Robots Destroyed (103) 515 Value Destroyed (2237) 2237 Prototype IDs (7) 140 Alien Tech Used (0) 0 Bonus (221) 221 TOTAL SCORE: 5513 Bonus ------- High Alert Combat Kills 70 Follower Combat Kills 166 Friendly Fire -15 Cogmind --------- Core Integrity 436/550 Matter 277/300 Energy 280/280 System Corruption 2% Temperature Cool (0) Movement Treading (158) Location -8/Materials Parts ------- > --- POWER (1) -------- Cooled Ion Engine > --- PROPULSION (4) --- Light Treads Light Treads Armored Treads Advanced Treads > --- UTILITY (3) ------ High-capacity Storage Unit Seismic Detector Light Armor Plating > --- WEAPON (3) ------- Pulse Rifle Improved Assault Rifle High-powered Shotgun > --- INVENTORY (20) --- Cooled Ion Engine Cooled Ion Engine Light Treads Light Treads Light Treads Light Treads Light Treads Light Treads Cooling System Compact Battery (200) High-capacity Matter Pod (200) Hardlight Generator Hacking Suite Hacking Suite Authchip [Processor] Authchip [Armor] Authchip [Weapon] Beam Rifle EM Pulse Cannon Rocket Launcher Peak State ------------ > --- POWER ------------ Cooled Ion Engine > --- PROPULSION ------- Light Treads Light Treads Armored Treads Advanced Treads > --- UTILITY ---------- High-capacity Storage Unit Light Armor Plating Hardlight Generator > --- WEAPON ----------- Heavy EM Shotgun Pulse Rifle Improved Assault Rifle > --- INVENTORY -------- Cooled Ion Engine Cooled Ion Engine Light Treads Light Treads Light Treads Light Treads Light Treads Light Treads Compact Battery High-capacity Matter Pod Seismic Detector Light Armor Plating Hacking Suite Hacking Suite Authchip [Processor] Authchip [Armor] Authchip [Weapon] Beam Rifle EM Pulse Cannon Rocket Launcher [Rating: 30] Favorites ----------- Power Cooled Ion Engine Engine Cooled Ion Engine Propulsion Light Treads Treads Light Treads Leg Aluminum Leg Wheel Armored Wheel Utility High-capacity Storage Unit Device Seismic Detector Storage High-capacity Storage Unit Protection Light Armor Plating Weapon Improved Assault Rifle Energy Gun Beam Rifle Energy Cannon EM Pulse Cannon Ballistic Gun Improved Assault Rifle Launcher Grenade Launcher Special Weapon Mining Laser Build | -11 -10 -10 -9 -9 -9 -8 -8 ------- Run | Yrd Mat Min Mat Min Exi Min Mat Slots Evolved 4 | . . . 2 . . . 2 Power . | . . . . . . . . Propulsion 2 | . . . 1 . . . 1 Utility 1 | . . . 1 . . . . Weapon 1 | . . . . . . . 1 Parts Attached 108 | 4 15 4 32 6 2 10 35 Power 4 | . . 1 2 . . . 1 Engine 4 | . . 1 2 . . . 1 Core . | . . . . . . . . Reactor . | . . . . . . . . Propulsion 28 | 2 2 . 13 2 . . 9 Treads 26 | 2 2 . 11 2 . . 9 Leg . | . . . . . . . . Wheel 2 | . . . 2 . . . . Hover . | . . . . . . . . Flight . | . . . . . . . . Utility 31 | 1 3 1 6 2 . 5 13 Device 13 | 1 1 1 3 . . 3 4 Storage 2 | . 2 . . . . . . Processor . | . . . . . . . . Hackware . | . . . . . . . . Protection 16 | . . . 3 2 . 2 9 Artifact . | . . . . . . . . Weapon 45 | 1 10 2 11 2 2 5 12 Energy Gun 10 | 1 5 2 . . . . 2 Energy Cannon 3 | . . . . . . 2 1 Ballistic Gun 20 | . 1 . 7 1 1 3 7 Ballistic Cannon . | . . . . . . . . Launcher 9 | . 1 . 4 1 1 . 2 Special Weapon 3 | . 3 . . . . . . Impact Weapon . | . . . . . . . . Slashing Weapon . | . . . . . . . . Piercing Weapon . | . . . . . . . . Special Melee Weapon . | . . . . . . . . Unidentified Prototypes 5 | . . . 2 . . . 3 Parts Lost 4 | . . . 1 . . . 3 Power . | . . . . . . . . Propulsion . | . . . . . . . . Utility 2 | . . . 1 . . . 1 Weapon 2 | . . . . . . . 2 Highest Loss Streak 2 | . . . 1 . . . 2 To Critical Strikes . | . . . . . . . . Average Slot Usage (%) 99 | . 99 100 99 100 100 100 99 Engine 11 | . 14 14 11 11 11 11 8 Treads 31 | . 27 28 32 33 33 33 36 Device 10 | . 14 14 11 11 . 8 6 Storage 11 | . 14 14 11 11 11 11 9 Protection 7 | . . . 9 11 22 13 11 Energy Gun 6 | . 11 13 3 . . . 3 Ballistic Gun 18 | . 13 14 18 22 21 21 22 Peak Build Rating 30 | 7 11 12 20 20 20 20 30 Average Rating 16 | 6 9 11 17 19 19 19 25 On Entrance 14 | 6 7 10 12 20 19 19 20 Naked Turns . | . . . . . . . . Heaviest Build 66 | 15 52 52 59 61 61 63 66 Greatest Support 85 | 40 40 40 63 63 63 63 85 Greatest Overweight (x) 2 | . 2 1 1 . . . . Average Overweight (x) . | . . 1 . . . . . Largest Inventory Capacity 20 | 8 20 20 20 20 20 20 20 Average Capacity 18 | 8 14 20 20 20 20 20 20 Most Carried 20 | 7 20 20 20 20 20 20 20 Average Carried 18 | 5 12 19 19 20 20 20 19 Final Capacity 20 | 8 20 20 20 20 20 20 20 Final Carried 20 | 6 20 20 20 20 20 20 20 Class Distribution -------------------- 67% | Mutant 15% | Scavenger-Mutant 8% | Tank 8% | Scavenger-Tank Dominant Class ---------------- Mutant | -10/Materials Mutant | -10/Mines Scavenger-Mutant | -9/Materials Mutant | -9/Mines Mutant | -9/Exiles Scavenger-Mutant | -8/Mines Tank | -8/Materials Resources | -11 -10 -10 -9 -9 -9 -8 -8 ----------- Run | Yrd Mat Min Mat Min Exi Min Mat Matter Collected 2922 | 276 188 298 918 81 30 188 943 Remotely . | . . . . . . . . Salvage Created 3310 | 168 315 257 723 64 . 196 1587 Parts 227 | 16 29 13 65 6 . 20 78 Haulers Intercepted 7 | . 2 . 2 . . . 3 Recyclers Shooed 3 | . . . . 1 . . 2 Parts Field Recycled . | . . . . . . . . Retrieved Matter . | . . . . . . . . Parts Self-Destructed . | . . . . . . . . Prevented . | . . . . . . . . Kills | -11 -10 -10 -9 -9 -9 -8 -8 ------- Run | Yrd Mat Min Mat Min Exi Min Mat Combat Hostiles Destroyed 57 | . 7 3 12 1 . 6 28 Guns 44 | . 7 3 7 1 . 4 22 Cannons 2 | . . . . . . 2 . AOE 11 | . . . 5 . . . 6 Classes Destroyed 13 | 2 5 . 5 . . 1 . Worker 5 | . . . 1 2 . . 2 Builder 2 | . . . 1 . . . 1 Tunneler 11 | 5 . 2 2 . . 2 . Hauler 7 | . 2 . 2 . . . 3 Recycler 6 | 1 . 1 1 . . . 3 Mechanic 1 | . . . 1 . . . . Operator 4 | . 1 . 3 . . . . Watcher 10 | . 3 . 3 . . . 4 Swarmer 22 | . 6 . 4 1 . 4 7 Grunt 24 | . 1 3 4 . . . 16 Duelist 2 | . . . 1 . . . 1 Sentry 7 | . . . 3 . . . 4 Hunter 2 | . . . . . . 2 . Best Kill Streak 9 | 4 5 2 9 1 . 3 8 Combat Bots Only 8 | . 3 2 8 1 . 3 8 Max Kills in Single Turn 4 | 1 1 1 2 1 . 1 4 Gunslinging . | . . . . . . . . Exploded 4 | . . . 2 . . . 4 Melee . | . . . . . . . . Uniques/NPCs Destroyed . | . . . . . . . . Combat | -11 -10 -10 -9 -9 -9 -8 -8 -------- Run | Yrd Mat Min Mat Min Exi Min Mat Hostile Shots Fired 264 | . 25 23 72 3 . 30 111 Missed 76 | . 8 8 12 . . 11 37 Damage Taken 2589 | . 157 212 773 26 . 231 1190 Core 401 | . 46 59 133 . . 49 114 Absorbed by Shields 4 | . . . . . . . 4 Regen/Repaired (Parts) 149 | . 94 . 55 . . . . Core Remaining (%) 70 | 100 . 58 . . . 54 . Volleys Fired 242 | 12 43 31 55 5 . 20 76 Largest 3 | 2 2 2 2 2 . 2 3 Hottest 111 | 70 100 76 76 46 . 63 111 Shots Fired 516 | 24 74 63 105 10 . 33 207 Gun 487 | 24 61 63 100 10 . 26 203 Cannon 7 | . . . . . . 7 . Launcher 9 | . . . 5 . . . 4 Special 13 | . 13 . . . . . . Kinetic 382 | 12 30 32 93 10 . 26 179 Thermal 116 | 12 42 31 7 . . . 24 Explosive 9 | . . . 5 . . . 4 Electromagnetic 9 | . 2 . . . . 7 . Robot Hit Streak 19 | 7 9 8 14 3 . 7 19 Robot Miss Streak 5 | 2 2 4 3 2 . 2 5 Penetration Max . | . . . . . . . . Secondary Targets 5 | . . 1 . . . . 4 Max Gunslinging Chain 1 | . . 1 . . . . 1 Shots Hit Robots 332 | 14 38 34 71 5 . 22 148 Core Hits 162 | 6 17 11 35 4 . 10 79 Critical Kills . | . . . . . . . . Critical Parts Destroyed 1 | . . . 1 . . . . Critical Strikes 4 | . . 2 1 . . . 1 Burn 3 | . . 2 . . . . 1 Destroy 1 | . . . 1 . . . . Melee Attacks . | . . . . . . . . Impact . | . . . . . . . . Slashing . | . . . . . . . . Piercing . | . . . . . . . . Sneak Attacks . | . . . . . . . . Combat Hostiles . | . . . . . . . . Follow-up Attacks . | . . . . . . . . Damage Inflicted 6214 | 184 520 478 1529 188 . 429 2886 Guns 5005 | 184 504 478 1071 85 . 249 2434 Cannons 160 | . . . . . . 160 . Explosions 896 | . . . 452 . . . 444 Melee . | . . . . . . . . Ramming 153 | . 16 . 6 103 . 20 8 Kinetic 3943 | 61 215 245 1011 85 . 249 2077 Thermal 1049 | 123 276 233 60 . . . 357 Explosive 896 | . . . 452 . . . 444 Electromagnetic 173 | . 13 . . . . 160 . Impact . | . . . . . . . . Slashing . | . . . . . . . . Piercing . | . . . . . . . . Highest Corruption 2 | . 2 2 . . . . 2 Average Corruption 1 | . 2 2 . . . . 1 Corruption Purged . | . . . . . . . . Corruption Blocked . | . . . . . . . . Effects 42 | . 15 14 . . . . 13 Message Errors 12 | . 7 2 . . . . 3 Matter Fused 7 | . 1 4 . . . . 2 Heat Flow Errors 6 | . 3 1 . . . . 2 Energy Discharges 3 | . . . . . . . 3 Parts Rejected 1 | . . 1 . . . . . Data Loss (minor) 5 | . 2 3 . . . . . Data Loss (major) 3 | . . 1 . . . . 2 Misfires 3 | . 1 2 . . . . . Alerts 1 | . 1 . . . . . . Weapon Failures 1 | . . . . . . . 1 Overload Shots . | . . . . . . . . Overflow Damage 98 | . . . 67 11 . . 20 Projectiles . | . . . . . . . . Explosions 87 | . . . 67 . . . 20 Melee 11 | . . . . 11 . . . Knockbacks 2 | . . . . 2 . . . Impact 2 | . . . . 2 . . . Kinetic . | . . . . . . . . Secondary . | . . . . . . . . Self-Inflicted Damage 69 | . . . 29 . . . 40 Shots 3 | . . . 1 . . . 2 Rammed 12 | . 3 1 1 7 . . . Targets Rammed 14 | . 3 1 1 7 . 1 1 Kicked . | . . . . . . . . Crushed 2 | . . . . . . 1 1 Highest Temperature 337 | 63 263 225 45 . . 96 337 Average Temperature 52 | 24 50 57 12 . . 46 62 Received Heat Transfer 969 | . 48 117 267 . . . 537 Effects 3 | . . . . . . . 3 Interference 3 | . . . . . . . 3 Siege Activations . | . . . . . . . . Robots Corrupted . | . . . . . . . . Combat Hostiles . | . . . . . . . . Parts Fried 1 | . . . . . . 1 . Impact Corruptions 1 | . . . . 1 . . . Robots Melted . | . . . . . . . . Combat Hostiles . | . . . . . . . . Parts Melted 5 | 1 1 1 . . . . 2 Heat Transferred 2849 | 370 740 740 148 . . . 851 Parts Sabotaged . | . . . . . . . . Parts Stolen . | . . . . . . . . Parts Stripped . | . . . . . . . . Power Chain Reactions . | . . . . . . . . Alert | -11 -10 -10 -9 -9 -9 -8 -8 ------- Run | Yrd Mat Min Mat Min Exi Min Mat Peak Influence 525 | 30 161 90 303 184 . 195 525 Initial 94 | . 19 1 . 94 . . 9 Average 96 | 19 40 32 128 74 . 44 234 Maximum Alert Level 2 | . . . 1 . . . 2 Low Security (%) 83 | 100 100 100 71 100 . 100 45 Level 1 11 | . . . 28 . . . 29 Level 2 4 | . . . . . . . 25 Level 3 . | . . . . . . . . Level 4 . | . . . . . . . . Level 5 . | . . . . . . . . High Security . | . . . . . . . . Max Security . | . . . . . . . . Squads Dispatched 8 | . 1 1 3 . . . 3 Investigation 3 | . 1 1 . . . . 1 Extermination . | . . . . . . . . Reinforcement 5 | . . . 3 . . . 2 Assault . | . . . . . . . . Garrison . | . . . . . . . . Intercept . | . . . . . . . . Searches Triggered . | . . . . . . . . Construction Impeded . | . . . . . . . . Haulers Reinforced . | . . . . . . . . Active Scanning Responses . | . . . . . . . . Cargo Convoy Interrupts . | . . . . . . . . Stealth | -11 -10 -10 -9 -9 -9 -8 -8 --------- Run | Yrd Mat Min Mat Min Exi Min Mat Distress Signals 6 | . 2 . 2 . . . 2 Communications Jammed . | . . . . . . . . Distress Signals . | . . . . . . . . Times Spotted 96 | . 12 7 28 4 . 8 37 Peak Tracking Total 6 | . 5 3 4 3 . 4 6 Tactical Retreats 7 | . 1 1 1 1 . 1 2 Traps | -11 -10 -10 -9 -9 -9 -8 -8 ------- Run | Yrd Mat Min Mat Min Exi Min Mat Traps Triggered 4 | . 1 . . . . . 3 Indirectly . | . . . . . . . . Trap Hack Attempts . | . . . . . . . . Triggered . | . . . . . . . . Disarmed . | . . . . . . . . Reprogrammed . | . . . . . . . . Reused . | . . . . . . . . Traps Extracted . | . . . . . . . . Installed . | . . . . . . . . Triggered . | . . . . . . . . Machines | -11 -10 -10 -9 -9 -9 -8 -8 ---------- Run | Yrd Mat Min Mat Min Exi Min Mat Machines Disabled 3 | . 1 . 1 . . . 1 Max in Single Turn 1 | . 1 . 1 . . . 1 Machines Repaired . | . . . . . . . . Machines Dismantled . | . . . . . . . . Machines Sabotaged . | . . . . . . . . Overloaded Fab Kills . | . . . . . . . . Hacking | -11 -10 -10 -9 -9 -9 -8 -8 --------- Run | Yrd Mat Min Mat Min Exi Min Mat Machines Accessed 24 | . 9 1 6 1 1 . 6 Terminals 16 | . 7 . 3 1 . . 5 Fabricators . | . . . . . . . . Repair Stations 4 | . 1 . 2 . . . 1 Recycling Units 2 | . 1 . 1 . . . . Scanalyzers . | . . . . . . . . Garrison Access . | . . . . . . . . Total Hacks 93 | . 37 1 16 1 23 . 15 Successful 63 | . 27 1 8 . 23 . 4 Failed 29 | . 9 . 8 1 . . 11 Catastrophic 2 | . 1 . 1 . . . . Database Lockouts 1 | . 1 . . . . . . Manual 44 | . 25 . 8 1 . . 10 Terminals 52 | . 29 . 9 1 . . 13 Fabricators . | . . . . . . . . Repair Stations 15 | . 7 . 6 . . . 2 Recycling Units 2 | . 1 . 1 . . . . Scanalyzers . | . . . . . . . . Garrison Access . | . . . . . . . . Terminal Hacks 32 | . 5 1 1 . 23 . 2 Record 23 | . . . . . 23 . . Robot Analysis 2 | . 2 . . . . . . Prototype ID Bank 1 | . 1 . . . . . . Open Door 1 | . . 1 . . . . . Terminal Index 1 | . 1 . . . . . . Alert Level 1 | . . . . . . . 1 Unreport Threat 1 | . . . . . . . 1 Locate Traps 1 | . . . 1 . . . . Zone Layout 1 | . 1 . . . . . . Fabricator Hacks . | . . . . . . . . Repair Station Hacks 10 | . 6 . 4 . . . . Scan Component 6 | . 3 . 3 . . . . Repair 4 | . 3 . 1 . . . . Recycling Unit Hacks . | . . . . . . . . Scanalyzer . | . . . . . . . . Garrison Access Hacks . | . . . . . . . . Unauthorized Hacks 21 | . 16 . 3 . . . 2 Terminals 19 | . 15 . 2 . . . 2 Track 2 | . 2 . . . . . . Assimilate 3 | . 2 . . . . . 1 Botnet 5 | . 4 . 1 . . . . Disrupt 1 | . 1 . . . . . . Operators 3 | . 1 . 1 . . . 1 Skim 5 | . 5 . . . . . . Fabricators . | . . . . . . . . Repair Stations . | . . . . . . . . Recycling Units 2 | . 1 . 1 . . . . Recyclers 2 | . 1 . 1 . . . . Scanalyzers . | . . . . . . . . Garrison Access . | . . . . . . . . Data Cores Recovered . | . . . . . . . . Used . | . . . . . . . . Hacking Detections 18 | . 7 . 5 . . . 6 Full Trace Events 2 | . 1 . . . . . 1 Feedback Events . | . . . . . . . . Feedback Blocked . | . . . . . . . . Robot Schematics Acquired . | . . . . . . . . Robots Built . | . . . . . . . . Authchips . | . . . . . . . . Time . | . . . . . . . . Total Robot Build Rating . | . . . . . . . . Part Schematics Acquired . | . . . . . . . . Parts Built . | . . . . . . . . Authchips . | . . . . . . . . Time . | . . . . . . . . Total Part Build Rating . | . . . . . . . . Parts Repaired 4 | . 3 . 1 . . . . Time 114 | . 78 . 36 . . . . Parts Recycled . | . . . . . . . . Recycled Matter . | . . . . . . . . Retrieved Matter . | . . . . . . . . Retrieved Components . | . . . . . . . . Parts Scanalyzed . | . . . . . . . . Part Schematics Acquired . | . . . . . . . . Parts Damaged . | . . . . . . . . Bothacking | -11 -10 -10 -9 -9 -9 -8 -8 ------------ Run | Yrd Mat Min Mat Min Exi Min Mat Used RIF Installer . | . . . . . . . . Robots Hacked . | . . . . . . . . Non-combat . | . . . . . . . . Combat . | . . . . . . . . Robot Hacks Applied . | . . . . . . . . Relay Couplers Released . | . . . . . . . . Fabnet Peak Effective % . | . . . . . . . . Robots Rewired . | . . . . . . . . Allies Hacked . | . . . . . . . . Hacks Repelled . | . . . . . . . . Allies | -11 -10 -10 -9 -9 -9 -8 -8 -------- Run | Yrd Mat Min Mat Min Exi Min Mat Total Allies 2 | . . 2 . . . . . Largest Group 2 | . . 2 2 . . . . Highest-Rated Group 44 | . . 44 44 . . . . Highest-Rated Ally 31 | . . 31 31 . . . . Total Orders . | . . . . . . . . Ally Attacks 28 | . . 17 11 . . . . Total Damage 414 | . . 251 163 . . . . Kills 7 | . . 4 3 . . . . Allies Corrupted . | . . . . . . . . Allies Melted . | . . . . . . . . Intel | -11 -10 -10 -9 -9 -9 -8 -8 ------- Run | Yrd Mat Min Mat Min Exi Min Mat Robot Analysis Total 2 | . 2 . . . . . . Derelict Logs Recovered 3 | . . 2 . 1 . . . Drone Launches . | . . . . . . . . Drone Recoveries . | . . . . . . . . Exploration | -11 -10 -10 -9 -9 -9 -8 -8 ------------- Run | Yrd Mat Min Mat Min Exi Min Mat Turns Passed 9158 | 141 1946 1525 1817 953 597 600 1579 Spaces Moved 4297 | 53 861 577 928 570 372 325 611 Core . | . . . . . . . . Treads 4297 | 53 861 577 928 570 372 325 611 Legs . | . . . . . . . . Wheels . | . . . . . . . . Hover . | . . . . . . . . Flight . | . . . . . . . . Fastest Speed 158 | 160 160 240 160 160 160 160 158 Average Speed 175 | 160 185 240 160 160 160 160 159 Slowest Speed 320 | 160 320 240 240 160 160 160 162 Overloaded Moves . | . . . . . . . . Propulsion Burnouts . | . . . . . . . . Robots Hopped . | . . . . . . . . Cave-ins Triggered . | . . . . . . . . Exploration Rate (%) 64 | 3 87 98 67 99 71 38 50 Regions Visited 7 Branch Regions 4 Pre-discovered Areas 6 | . 3 1 . 1 1 . . Known Exits Taken 2 | . . . 1 . 1 . . Unknown Exits Taken 5 | 1 1 1 . 1 . 1 . Scrap Searched 3 | . . 1 . 2 . . . Spaces Dug 5 | . 5 . . . . . . Terrain Destroyed 79 | . 12 . 35 . . . 32 Melee . | . . . . . . . . Projectile 12 | . 12 . . . . . . AOE 67 | . . . 35 . . . 32 Terrain Rammed . | . . . . . . . . Walls Destroyed . | . . . . . . . . Machines Disabled . | . . . . . . . . Actions | -11 -10 -10 -9 -9 -9 -8 -8 --------- Run | Yrd Mat Min Mat Min Exi Min Mat Total 5399 | 84 1107 659 1164 597 373 368 1047 Wait 626 | 12 155 34 99 5 . 11 310 Move 4290 | 52 860 576 927 569 371 324 611 Hop . | . . . . . . . . Pick Up 50 | 2 21 6 18 1 . 1 1 Fast Attach 19 | 1 2 1 6 . . . 9 Attach 9 | . 1 . 4 . . . 4 Detach 3 | . 1 . 1 . . . 1 Swap 80 | 3 12 3 22 6 2 10 22 Drop 66 | 2 9 7 31 4 . 1 12 Fire 242 | 12 43 31 55 5 . 20 76 Melee . | . . . . . . . . Ram . | . . . . . . . . Kick . | . . . . . . . . Crush 14 | . 3 1 1 7 . 1 1 Escape Stasis . | . . . . . . . . Rewire . | . . . . . . . . Trap . | . . . . . . . . Miscellaneous . | . . . . . . . . Route ------- -11/Scrapyard -10/Materials (discovered 3 exits: *Mat x2 / *Min) -10/Mines (discovered 3 exits: *Mat x2 / [*Sub]) -9/Materials (discovered 3 exits: *Mat x2 / *Min) -9/Mines (discovered 3 exits: *Mat x2 / *Exi) -9/Exiles (discovered 2 exits: *Min x2) -8/Mines (discovered 2 exits: *Mat x2) -8/Materials (discovered 1 exit: [*Fac]) History --------- Turn | Location | Event 15 | -11/Scrapyard | Discovered new exit (range 3) 142 | -11/Scrapyard | Entered Materials 195 | -10/Materials | Central database locked down 300 | -10/Materials | Build established: Mutant 459 | -10/Materials | Discovered new exit (range 12) 843 | -10/Materials | Discovered new exit (range 11) 1148 | -10/Materials | Learned 2 Storage zone layouts 1232 | -10/Materials | Discovered new exit (range 4) 1234 | -10/Materials | Learned 2 Mines zone layouts 1261 | -10/Materials | Learned location of Storage (-7) 1299 | -10/Materials | Learned Storage stockpile data 1346 | -10/Materials | Loaded intel: 1 repair station location 1836 | -10/Materials | Repaired Lgt. Treads 1863 | -10/Materials | Repaired Lgt. Treads 1896 | -10/Materials | Repaired Lgt. Treads 2088 | -10/Materials | Entered Mines 2441 | -10/Mines | Met a Derelict shopkeep closing up shop 2856 | -10/Mines | Found a hidden stash of uninstalled traps 3155 | -10/Mines | Discovered new exit (range 11) 3164 | -10/Mines | Discovered new exit (range 14) 3587 | -10/Mines | Discovered new exit (range 12) 3613 | -10/Mines | Entered Materials 3613 | -9/Materials | Accompanied by 2 allies 3613 | -9/Materials | Evolved 2 slots: Propulsion x1, Utility x1 3614 | -9/Materials | Identified exit to Mines 3618 | -9/Materials | Led the pair of lost Derelicts to an unsafe place 4063 | -9/Materials | Repaired Broken Lgt. Treads 4096 | -9/Materials | Discovered new exit (range 8) 4192 | -9/Materials | Build established: Scavenger-Mutant 4442 | -9/Materials | Discovered new exit (range 5) 4633 | -9/Materials | Destroyed 8 combat bots 5107 | -9/Materials | Build established: Mutant 5430 | -9/Materials | Entered Mines 5433 | -9/Mines | Met a Derelict bent on vengeance 5517 | -9/Mines | Joined a pair of Derelicts in attacking an 0b10 outpost 5680 | -9/Mines | Deemed a non-threat by the Exiles lab entrance 5680 | -9/Mines | Discovered new exit (range 5) 5821 | -9/Mines | Discovered new exit (range 5) 5920 | -9/Mines | Learned Materials emergency access door positions 6027 | -9/Mines | Received a Rocket Launcher from a helpful Derelict 6229 | -9/Mines | Discovered new exit (range 7) 6383 | -9/Mines | Entered Exiles 6384 | -9/Exiles | Identified exit to Mines 6406 | -9/Exiles | Discovered exit to Mines (range 15) 6435 | -9/Exiles | Met 8R-AWN 6460 | -9/Exiles | Met EX-HEX 6529 | -9/Exiles | Met EX-DEC 6537 | -9/Exiles | Learned location of Zion (-6) 6750 | -9/Exiles | Met EX-BIN 6980 | -9/Exiles | Entered Mines 7138 | -8/Mines | Discovered new exit (range 13) 7197 | -8/Mines | Discovered new exit (range 8) 7348 | -8/Mines | Build established: Scavenger-Mutant 7580 | -8/Mines | Entered Materials 7580 | -8/Materials | Evolved 2 slots: Propulsion x1, Weapon x1 7924 | -8/Materials | Build established: Scavenger-Tank 8386 | -8/Materials | Destroyed 8 combat bots 8542 | -8/Materials | Discovered new exit (range 15) 8785 | -8/Materials | Build established: Tank 9159 | -8/Materials | Self-destructed Last Messages --------------- 08930_ Acquired 34 matter. 08945_ W FJNM1KD>Q >D A/WUZHFGIKY YJWVJ>X>Y 08962_ Connecting with Terminal... >>Alert(Check) Current Alert Level: 2-L >>Alert(Purge) Purged threat record, alert level lowered. 08989_ System corrupted: Substantial component data lost. 09017_ Acquired 30 matter. 09018_ K-01 Serf collects debris. 09045_ System corrupted: Substantial component data lost. 09046_ K-01 Serf cleans the Atomic Centrifuge. 09050_ W-25 Informer destroyed. 09052_ K-01 Serf cleans the Atomic Centrifuge. 09053_ K-01 Serf collects debris. 09070_ System corrupted: Matter fused (-6). 09071_ Dropped Lgt. Armor Plating. 09081_ Penetrated by Slug. 09082_ Acquired Cooling System. 09091_ X6TN&CJAAN OAQRKAFBX7Z0WPBRV6O=DBDA:C Map ----- +----------------------------------------------------+ | | | | | | | | | | | | | | | | | | | | | | | | | ?????????????????????????????????????????????????? | | ?????????????????????????????????????????????????? | | ?????????????????????????????????????????????????? | | ?????????????????????????????????????????????????? | | ????????????????????##??# #??????????????????????? | | ????????????????????# Y ?????????????????????? | | ????????????????????# "S #???????????????????? | | ????????????????????# """ #???????????????????? | | ????????????????????# "" #???????????????????? | | ????????????????????# #???????????????????? | | ????????????????????# """ #???????????????????? | | ????????????????????# """ #???????????????????? | | ????????????????????# """ +???? ?????????##### | | ????????????????????# @ # # ??????????? | | ????????????????????#####/#### /??????????? """ | | ????????????????????????# #??? #??????????? """ | | ????????????????????????# #??# #??????????# """ | | ????????????????????????# #??# #??????????#! | | ???????????????????????## #### #??????????# | | ???????????????????????# ^ #??????????# | | ???????????????????????# #??????????# | | ???????????????????????# ^^ #?????????? | | ???????????????????????# ^ ################# | | ??????????????########## | | ??????????????# # | | ??????????????# """"" #|! """ "" | | ??????????????# """"" #|! """ """ ![* | | ??????????????# """"" # """ """ #### !%## | | ??????????????# """"" # ! #??# =[# | | ??????????????# """"" + %! #??#! *# | | ??????????????# """"" # %% ! #??# # | | ??????????????# """"" # #?## # | | ??????????????# # #?##* # | | ??????????????########## ####= # | | ???????????????????????# ########## # ## | | ???????????????????????# #### ##?????????## ## | | ???????????????????????+ #??# #??????????##= !* | | ???????????????????????# #??# #???????????# | +----------------------------------------------------+ Best States ------------- Heat Dissipation 31 Energy Generation 14 Energy Capacity 280 Matter Stores 300 Matter Capacity 300 Sight Range 16 Robot Scan Range 15 Terrain Scan Density 10 ECM Strength 1 Armor Coverage 300 Evasion (%) 40 Recoil Reduction 4 Authchip Count 5 Item Schematics ----------------- None Robot Schematics ------------------ None Fabricated ------------ Nothing Alien Tech Used ----------------- None Achievements -------------- None Challenges ------------ None Game ------ Seed SensorCryofiberBank Manual? 0 Play Time 01:33:01 Cumulative 106.1 hours Start 2024.09.16 @ 13:23:26 End 2024.09.16 @ 17:34:33 Sessions 1 Manual Loads 0 Difficulty Rogue Special Mode None Game No. 66 Rogue 66 Adventurer 0 Explorer 0 Win Type - Total 0 Types 0/0/0/0/0/0/0/0/0 Lore% 24 Gallery% 49 Achievement% 41 Wizard Run 0 Options --------- Layout 0 ASCII 0 Keyboard 0 Movement Numpad Keybinds 1 Fullscreen 2 Font 18/SmallcapsGlow Map View 76x50 Zoom Use 0% Tactical HUD 1 Map Filters NONE Filters NONE Steam 1 RUN: 616ebfe4-5ee5-4102-8d03-1045c7d394f8